bitfinex/quotes_BTCUSD_20230905
["timestamp","ask_amount","ask_price","bid_price","bid_amount"]
[1693926675898,0.03295168,25782.0,25781.0,0.02]
[1693926684530,0.42664527,25789.0,25781.0,0.02]
[1693926684531,1.764647,25792.0,25787.0,0.02]
[1693926684737,0.2573,25788.0,25787.0,0.1224]
[1693926684945,0.9892,25792.0,25789.0,0.02]
[1693926685151,0.2573,25791.0,25790.0,0.02]
[1693926685801,0.54272793,25791.0,25790.0,0.02]
[1693926687390,0.56672793,25791.0,25790.0,0.022]
[1693926687606,0.56672793,25791.0,25790.0,0.002]
[1693926687607,0.2813,25791.0,25790.0,0.002]
[1693926687812,0.2813,25791.0,25790.0,0.022]
[1693926688041,0.3053,25791.0,25790.0,0.024]
[1693926688397,0.4673,25791.0,25790.0,0.024]
[1693926692396,0.48186986,25791.0,25790.0,0.024]
[1693926693466,0.79590536,25791.0,25790.0,0.024]
[1693926694069,1.86052305,25791.0,25790.0,0.024]
[1693926695681,1.54648755,25791.0,25790.0,0.024]
[1693926696083,3.19981555,25791.0,25790.0,0.024]
[1693926699191,3.67780713,25791.0,25790.0,0.004]
[1693926700742,3.93719677,25791.0,25790.0,0.004]
[1693926701526,4.0644524,25791.0,25790.0,0.004]
[1693926702223,4.30848514,25791.0,25790.0,0.004]
[1693926702426,3.92183987,25791.0,25790.0,0.004]
[1693926704757,0.24201563,25790.0,25786.0,0.019]
[1693926704963,2.48899,25789.0,25786.0,0.019]
[1693926705984,2.48899,25789.0,25786.0,0.02]
[1693926706183,2.48899,25789.0,25786.0,0.022]
[1693926706389,0.0146526,25788.0,25786.0,0.02]
[1693926706547,0.7902106,25788.0,25786.0,0.02]
[1693926706744,0.7902106,25788.0,25786.0,0.022]
[1693926706982,0.0146526,25788.0,25786.0,0.022]
[1693926707573,0.0146526,25788.0,25786.0,0.02]
[1693926707779,0.0146526,25788.0,25787.0,0.019]
[1693926709105,0.0476526,25788.0,25787.0,0.021]
[1693926709461,0.0356526,25788.0,25787.0,0.021]
[1693926709875,0.0476526,25788.0,25787.0,0.022]
[1693926710294,0.2086526,25788.0,25787.0,0.022]
[1693926711688,0.2086526,25788.0,25787.0,0.02191584]
[1693926712001,0.20856601,25788.0,25787.0,0.02191584]
[1693926714867,0.98412001,25788.0,25787.0,0.02191584]
[1693926715087,1.26339308,25788.0,25787.0,0.02191584]
[1693926717486,0.82312001,25788.0,25787.0,0.02191584]
[1693926717689,0.04756601,25788.0,25787.0,4.27096927]
[1693926717908,0.04756601,25788.0,25787.0,4.45568917]
[1693926718251,0.033,25788.0,25787.0,4.45568917]
[1693926719088,0.012,25788.0,25787.0,4.45368917]
[1693926719229,0.012,25788.0,25787.0,4.84033444]
[1693926719433,0.002,25788.0,25787.0,4.85333444]
[1693926719842,0.004,25788.0,25787.0,4.87733444]
[1693926720452,0.004,25788.0,25787.0,5.40149255]
[1693926720652,0.004,25788.0,25787.0,5.38863444]
[1693926721487,0.002,25788.0,25787.0,5.37463444]
[1693926721644,0.002,25788.0,25787.0,5.41351979]
[1693926721846,0.004,25788.0,25787.0,5.43751979]
[1693926722310,0.002,25788.0,25787.0,5.41351979]
[1693926722709,1.43971113,25800.0,25798.0,0.01891584]
[1693926722923,1.43971113,25800.0,25799.0,0.11525811]
[1693926722924,2.05961913,25800.0,25799.0,0.11525811]
[1693926723571,2.05961913,25800.0,25798.0,0.01891584]
[1693926723743,1.43971113,25800.0,25798.0,0.01891584]
[1693926724450,1.46471113,25800.0,25799.0,0.002]
[1693926724657,0.23224767,25800.0,25799.0,0.12131584]
[1693926724868,0.25624767,25800.0,25799.0,0.89653884]
[1693926725072,0.25624767,25800.0,25799.0,0.12131584]
[1693926725470,0.23224767,25800.0,25799.0,0.01891584]
[1693926725876,0.25224767,25800.0,25799.0,0.02091584]
[1693926726074,0.27624767,25800.0,25799.0,0.02091584]
[1693926726345,0.25624767,25800.0,25799.0,0.01891584]
[1693926726543,0.23224767,25800.0,25799.0,0.01891584]
[1693926726955,0.24724767,25800.0,25799.0,0.01991584]
[1693926727178,0.015,25800.0,25799.0,0.01991584]
[1693926727971,0.035,25800.0,25799.0,0.02191584]
[1693926729964,0.03,25800.0,25799.0,0.02191584]
[1693926734792,0.025,25800.0,25799.0,0.02191584]
[1693926740293,1.575386,25800.0,25799.0,0.02191584]
[1693926740498,1.47046827,25800.0,25799.0,0.02191584]
[1693926740717,1.18309739,25800.0,25799.0,0.02191584]
[1693926740851,1.95829039,25800.0,25799.0,0.02191584]
[1693926746070,1.18309739,25800.0,25799.0,0.02191584]
[1693926746473,0.1858,25800.0,25799.0,0.02191584]
[1693926754203,0.025,25800.0,25799.0,3.85190727]
[1693926754387,0.025,25800.0,25799.0,3.87190727]
[1693926754566,0.025,25800.0,25799.0,4.17190727]
[1693926757672,0.025,25800.0,25799.0,1.439593]
[1693926760390,0.025,25800.0,25799.0,1.439593]
[1693926760791,0.025,25800.0,25799.0,2.214816]
[1693926762252,0.025,25800.0,25799.0,1.439593]
[1693926764527,0.025,25800.0,25799.0,0.32191584]
[1693926770778,0.025,25800.0,25799.0,1.09713884]
[1693926772480,0.025,25800.0,25799.0,1.87236184]
[1693926774097,0.025,25800.0,25799.0,0.32191584]
[1693926774304,1.05202228,25800.0,25799.0,0.02191584]
[1693926774510,1.82721528,25800.0,25799.0,0.02191584]
[1693926775110,1.99061528,25800.0,25799.0,0.02191584]
[1693926775517,1.21542228,25800.0,25799.0,0.02191584]
[1693926776597,0.44022928,25800.0,25799.0,0.02191584]
[1693926779067,0.57985818,25800.0,25799.0,0.02191584]
[1693926779269,0.3280289,25800.0,25799.0,0.79713884]
[1693926779476,0.3280289,25800.0,25799.0,1.09713884]
[1693926779951,0.42111223,25800.0,25799.0,1.87236184]
[1693926780153,0.42111223,25800.0,25799.0,1.09713884]
[1693926780788,0.3280289,25800.0,25799.0,1.09713884]
[1693926780979,0.1884,25800.0,25799.0,1.09713884]
[1693926781649,0.025,25800.0,25799.0,1.09713884]
[1693926781857,0.025,25800.0,25799.0,3.13663011]
[1693926782058,0.025,25800.0,25799.0,3.42457738]
[1693926782261,0.025,25800.0,25799.0,3.35473738]
[1693926782461,0.025,25800.0,25799.0,3.42091738]
[1693926782714,0.005,25800.0,25799.0,3.35262114]
[1693926783520,0.69174671,25805.0,25799.0,3.35162114]
[1693926783747,0.53684671,25805.0,25802.0,0.1024]
[1693926783940,0.29594671,25805.0,25804.0,0.0187996]
[1693926784139,0.29594671,25805.0,25804.0,0.7938726]
[1693926784323,0.0198,25806.0,25804.0,0.7938726]
[1693926784523,0.0198,25806.0,25805.0,0.0187996]
[1693926784524,0.1747,25806.0,25805.0,0.0187996]
[1693926785151,0.1747,25806.0,25805.0,0.7938426]
[1693926785547,0.1747,25806.0,25805.0,2.7463286]
[1693926785894,0.1747,25806.0,25805.0,2.92443587]
[1693926786100,0.0368,25806.0,25805.0,3.13497387]
[1693926786270,0.29888213,25808.0,25807.0,0.5476996]
[1693926786474,0.29888213,25808.0,25807.0,3.75455198]
[1693926786674,0.29888213,25808.0,25807.0,4.51667687]
[1693926786879,0.29888213,25808.0,25807.0,4.97514214]
[1693926787096,0.29888213,25808.0,25807.0,4.90332214]
[1693926787286,6.531e-05,25809.0,25808.0,0.6076996]
[1693926787626,6.531e-05,25809.0,25808.0,3.63920387]
[1693926787837,6.531e-05,25809.0,25808.0,3.95377587]
[1693926788042,6.531e-05,25809.0,25808.0,3.38771587]
[1693926788241,0.29134877,25809.0,25808.0,0.3187996]
[1693926788445,0.16246531,25809.0,25808.0,1.0937526]
[1693926788558,0.01306531,25809.0,25808.0,2.84853396]
[1693926788758,0.01306531,25809.0,25808.0,2.95093396]
[1693926789160,0.01406531,25809.0,25808.0,3.35957923]
[1693926790195,0.01406531,25809.0,25808.0,3.15670387]
[1693926791049,0.01406531,25809.0,25808.0,1.95935087]
[1693926791253,0.01406531,25809.0,25808.0,1.97935087]
[1693926791610,0.01406531,25809.0,25808.0,3.36800387]
[1693926791812,0.01406531,25809.0,25808.0,3.52303187]
[1693926792012,0.01406531,25809.0,25808.0,4.21237714]
[1693926792218,0.01406531,25809.0,25808.0,4.21117714]
[1693926792420,0.01406531,25809.0,25808.0,4.50247714]
[1693926792624,0.01406531,25809.0,25808.0,4.50067714]
[1693926792855,0.01406531,25809.0,25808.0,4.49635714]
[1693926793068,0.0197,25812.0,25811.0,0.6076996]
[1693926793266,0.0197,25812.0,25811.0,5.35182983]
[1693926794593,0.0197,25812.0,25811.0,5.37682983]
[1693926794928,0.0197,25812.0,25811.0,5.47264983]
[1693926795104,0.0197,25812.0,25811.0,6.25225283]
[1693926795243,0.0197,25812.0,25811.0,6.26849283]
[1693926795442,0.0197,25812.0,25811.0,5.49014983]
[1693926795651,0.0197,25812.0,25811.0,5.37682983]
[1693926795846,0.3246596,25821.0,25820.0,0.0187996]
[1693926796052,0.3337674,25827.0,25824.0,0.0187996]
[1693926796053,0.1509,25825.0,25824.0,0.0187996]
[1693926796260,0.0197,25826.0,25825.0,0.4276996]
[1693926796465,0.0197,25826.0,25825.0,3.14403198]
[1693926796681,0.0197,25826.0,25825.0,3.16403198]
[1693926796888,0.0195,25827.0,25826.0,0.0187996]
[1693926797092,0.31822791,25827.0,25826.0,2.49192898]
[1693926797315,0.0195,25827.0,25826.0,3.26634198]
[1693926797523,0.0195,25827.0,25826.0,3.94662914]
[1693926798194,0.0195,25827.0,25826.0,4.19296914]
[1693926798402,0.0198,25832.0,25831.0,0.0187996]
[1693926798605,0.0198,25832.0,25831.0,4.82091798]
[1693926798861,0.0198,25832.0,25831.0,3.11699387]
[1693926798974,0.0198,25832.0,25831.0,2.27397087]
[1693926799199,0.0198,25832.0,25831.0,1.63496598]
[1693926799400,0.00031,25833.0,25832.0,0.1987996]
[1693926799401,0.2258307,25833.0,25832.0,0.1987996]
[1693926799618,0.0198,25835.0,25834.0,0.1987996]
[1693926799826,0.29726215,25835.0,25834.0,4.49204414]
[1693926800031,0.31335708,25835.0,25834.0,2.37619087]
[1693926800235,0.24679351,25835.0,25834.0,0.3187996]
[1693926800852,0.24679351,25835.0,25834.0,0.0187996]
[1693926800853,1.02093651,25835.0,25834.0,0.0187996]
[1693926801052,1.02093651,25835.0,25834.0,0.0437996]
[1693926801301,1.12333651,25835.0,25834.0,0.0187996]
[1693926801700,0.0198,25835.0,25834.0,0.0407996]
[1693926801900,0.0198,25835.0,25834.0,0.0187996]
[1693926802279,0.05724338,25835.0,25834.0,0.0187996]
[1693926802483,0.93378638,25835.0,25834.0,0.0207996]
[1693926802680,0.99378638,25835.0,25834.0,0.002]
[1693926802906,1.98662938,25835.0,25834.0,0.002]
[1693926803134,2.23472938,25835.0,25834.0,0.002]
[1693926803284,2.66257505,25835.0,25834.0,0.002]
[1693926803497,2.79003537,25835.0,25829.0,0.02]
[1693926803695,0.1361,25830.0,25829.0,0.02]
[1693926803902,1.06505111,25830.0,25829.0,0.02]
[1693926804105,1.684686,25830.0,25829.0,0.02]
[1693926804320,1.548586,25830.0,25829.0,0.02]
[1693926804578,0.774293,25830.0,25829.0,0.02]
[1693926804778,1.41181878,25835.0,25829.0,0.43962928]
[1693926804980,1.41181878,25835.0,25831.0,0.02]
[1693926804981,0.63767578,25835.0,25831.0,0.02]
[1693926805306,2.3269,25835.0,25834.0,0.002]
[1693926805447,2.84964527,25835.0,25834.0,0.002]
[1693926805658,3.23429054,25835.0,25831.0,0.02]
[1693926805834,1.548466,25832.0,25831.0,0.02]
[1693926806500,1.548466,25832.0,25831.0,0.022]
[1693926806700,2.26221127,25832.0,25831.0,0.002]
[1693926806939,2.44721127,25832.0,25831.0,0.002]
[1693926807127,3.461097,25832.0,25828.0,0.22768893]
[1693926807336,3.461097,25832.0,25831.0,0.002]
[1693926807337,3.61575511,25832.0,25831.0,0.002]
[1693926807479,3.597197,25832.0,25828.0,0.22768893]
[1693926807676,0.1361,25830.0,25828.0,0.22768893]
[1693926807879,1.548646,25829.0,25828.0,0.22768893]
[1693926808109,0.774323,25829.0,25828.0,0.22768893]
[1693926808488,0.774323,25829.0,25828.0,0.09107557]
[1693926808740,0.774323,25829.0,25827.0,0.02]
[1693926809308,0.004,25829.0,25828.0,0.002]
[1693926809507,0.004,25829.0,25828.0,0.062]
[1693926809735,0.2343,25830.0,25828.0,1.6983421]
[1693926809940,0.2343,25830.0,25828.0,0.834353]
[1693926810145,0.004,25829.0,25828.0,0.834353]
[1693926810360,0.004,25829.0,25828.0,0.835353]
[1693926810571,0.004,25829.0,25828.0,0.834353]
[1693926810970,0.004,25829.0,25828.0,0.06]
[1693926811429,0.44816074,25830.0,25828.0,0.062]
[1693926811625,0.45216074,25830.0,25828.0,0.062]
[1693926811877,0.2383,25830.0,25828.0,0.836352]
[1693926812066,0.2343,25830.0,25828.0,0.835352]
[1693926812282,0.2343,25830.0,25829.0,0.02]
[1693926813001,0.2343,25830.0,25829.0,2.342969]
[1693926813230,0.2383,25830.0,25829.0,1.588646]
[1693926814556,0.2343,25830.0,25829.0,1.589646]
[1693926814966,0.2383,25830.0,25829.0,2.01829127]
[1693926815164,0.2383,25830.0,25829.0,3.15261427]
[1693926815364,0.22625374,25833.0,25830.0,0.37225035]
[1693926815566,0.22625374,25833.0,25831.0,0.02]
[1693926816636,1.00045874,25833.0,25831.0,0.02]
[1693926817158,1.77466374,25833.0,25831.0,0.02]
[1693926817361,0.5121,25832.0,25831.0,0.002]
[1693926817586,3.1956889,25832.0,25831.0,0.002]
[1693926818234,3.1956889,25832.0,25830.0,0.37425035]
[1693926818235,2.834799,25832.0,25830.0,0.37425035]
[1693926818708,0.21126538,25831.0,25830.0,0.37425035]
[1693926818942,2.322789,25831.0,25830.0,0.37225035]
[1693926819652,2.74943427,25831.0,25830.0,0.12225035]
[1693926819839,3.20060098,25831.0,25830.0,0.06175035]
[1693926820053,3.20060098,25831.0,25830.0,0.06375035]
[1693926820054,3.20480098,25831.0,25830.0,0.06375035]
[1693926820291,3.60430625,25831.0,25830.0,0.06475035]
[1693926820493,3.60436625,25831.0,25830.0,0.06475035]
[1693926820723,3.58988625,25831.0,25830.0,0.06375035]
[1693926820919,3.61568625,25831.0,25830.0,0.06575035]
[1693926821094,3.61376625,25831.0,25830.0,0.06575035]
[1693926821306,3.58484625,25831.0,25830.0,0.06175035]
[1693926821520,3.58508625,25831.0,25830.0,0.06175035]
[1693926821687,3.63250625,25831.0,25830.0,0.06575035]
[1693926821869,3.63238625,25831.0,25830.0,0.06575035]
[1693926822074,3.61100625,25831.0,25830.0,0.06375035]
[1693926822275,3.60944625,25831.0,25830.0,0.06375035]
[1693926822476,3.63268625,25831.0,25830.0,0.06575035]
[1693926822678,3.63670625,25831.0,25830.0,0.06575035]
[1693926822942,3.65932625,25831.0,25830.0,0.06575035]
[1693926823095,3.66298625,25831.0,25830.0,0.06575035]
[1693926823292,3.66682625,25831.0,25830.0,0.06575035]
[1693926823490,3.65194625,25831.0,25830.0,0.06575035]
[1693926823717,3.26242098,25831.0,25830.0,0.06575035]
[1693926823925,3.16276098,25831.0,25830.0,0.06575035]
[1693926824141,3.00238292,25831.0,25830.0,0.06575035]
[1693926825936,0.238,25831.0,25830.0,0.06575035]
[1693926826136,0.047,25831.0,25830.0,0.06575035]
[1693926827069,0.30594972,25831.0,25830.0,0.06575035]
[1693926827814,0.047,25831.0,25830.0,0.06575035]
[1693926829102,0.047,25831.0,25830.0,0.88004335]
[1693926829464,0.047,25831.0,25830.0,1.22218325]
[1693926829985,0.047,25831.0,25830.0,3.23741452]
[1693926830197,0.047,25831.0,25830.0,4.33170752]
[1693926830908,0.24193262,25833.0,25832.0,0.12]
[1693926831118,0.774203,25833.0,25832.0,0.12]
[1693926831716,1.05983165,25833.0,25832.0,0.12]
[1693926832249,1.85503465,25833.0,25832.0,0.002]
[1693926832451,1.85503465,25833.0,25832.0,0.042]
[1693926832861,2.62923765,25833.0,25832.0,0.042]
[1693926833307,1.85503465,25833.0,25832.0,0.042]
[1693926833976,2.62923765,25833.0,25832.0,0.042]
[1693926834282,3.01588292,25833.0,25832.0,0.042]
[1693926834639,3.01588292,25833.0,25832.0,0.004]
[1693926834640,3.03888292,25833.0,25832.0,0.004]
[1693926835152,3.33455765,25833.0,25832.0,0.004]
[1693926835283,0.04,25831.0,25830.0,0.06175035]
[1693926835489,0.04,25831.0,25828.0,0.09140457]
[1693926835492,0.04,25830.0,25828.0,0.09140457]
[1693926835693,2.07139127,25829.0,25827.0,0.22851143]
[1693926835948,2.22604938,25829.0,25826.0,0.22851143]
[1693926836149,0.1361,25827.0,25826.0,0.22851143]
[1693926836355,1.29712827,25827.0,25826.0,0.09140457]
[1693926836563,2.07151127,25827.0,25825.0,0.13140457]
[1693926836772,2.84589427,25827.0,25825.0,0.15140457]
[1693926836979,2.459249,25827.0,25825.0,0.15140457]
[1693926837183,2.323149,25827.0,25825.0,0.15140457]
[1693926837594,1.99721317,25828.0,25825.0,0.15140457]
[1693926837794,0.77439,25827.0,25825.0,0.13140457]
[1693926838002,1.99721017,25828.0,25825.0,0.15140457]
[1693926838419,0.02,25830.0,25828.0,0.02]
[1693926838626,0.798263,25831.0,25829.0,0.04]
[1693926838760,1.09178488,25831.0,25829.0,0.15525811]
[1693926838958,1.09178488,25831.0,25829.0,0.04]
[1693926839264,1.86605888,25831.0,25829.0,0.04]
[1693926839502,0.024,25830.0,25829.0,0.04]
[1693926839922,0.798263,25831.0,25829.0,0.04]
[1693926840077,0.798263,25831.0,25829.0,0.041]
[1693926840078,0.822263,25831.0,25829.0,0.041]
[1693926840279,0.822263,25831.0,25830.0,0.06]
[1693926840280,0.048,25831.0,25830.0,0.06]
[1693926840485,0.024,25831.0,25830.0,0.894293]
[1693926840693,0.024,25831.0,25830.0,1.668586]
[1693926840863,0.048,25831.0,25830.0,1.668586]
[1693926841538,0.376,25832.0,25830.0,1.668586]
[1693926841539,0.376,25832.0,25831.0,0.1]
[1693926841779,0.376,25832.0,25831.0,2.51127127]
[1693926841979,0.774093,25837.0,25831.0,3.28553427]
[1693926842083,0.774093,25837.0,25835.0,0.02]
[1693926842292,0.774093,25837.0,25835.0,0.13525811]
[1693926842592,1.548186,25837.0,25835.0,0.13525811]
[1693926842803,0.23481188,25836.0,25835.0,0.02]
[1693926842998,1.00892488,25836.0,25835.0,0.02]
[1693926843246,0.774113,25836.0,25835.0,0.021]
[1693926843829,0.798093,25837.0,25835.0,0.021]
[1693926844229,0.024,25837.0,25835.0,0.021]
[1693926844638,0.024,25836.0,25835.0,0.022]
[1693926844841,1.84353009,25836.0,25835.0,0.022]
[1693926845041,1.99195464,25836.0,25835.0,0.022]
[1693926845215,1.98795464,25836.0,25835.0,0.021]
[1693926845619,2.76206764,25836.0,25835.0,0.023]
[1693926845833,2.61364309,25836.0,25835.0,0.023]
[1693926846200,0.02,25836.0,25835.0,3.24817427]
[1693926847109,0.02,25836.0,25835.0,3.29007427]
[1693926847345,0.044,25836.0,25835.0,3.0252097]
[1693926847557,0.044,25836.0,25835.0,1.40874796]
[1693926847769,0.044,25836.0,25835.0,2.18289096]
[1693926847976,0.02,25836.0,25835.0,2.57066605]
[1693926848178,0.774038,25839.0,25837.0,0.08]
[1693926848179,1.548078,25839.0,25837.0,0.08]
[1693926848386,1.548078,25839.0,25838.0,0.08]
[1693926848623,0.774038,25839.0,25838.0,0.08]
[1693926848833,2.69834727,25839.0,25838.0,0.08]
[1693926849047,2.69834727,25839.0,25837.0,0.09180121]
[1693926849048,2.84486327,25839.0,25837.0,0.09180121]
[1693926849264,0.29369349,25837.0,25836.0,0.56959373]
[1693926849474,0.375,25838.0,25837.0,0.08]
[1693926849747,0.021,25839.0,25838.0,0.001]
[1693926849957,0.021,25839.0,25838.0,0.061]
[1693926850173,0.021,25839.0,25836.0,0.75233437]
[1693926850174,0.22979531,25838.0,25836.0,0.75233437]
[1693926850602,0.22979531,25838.0,25833.0,1.48187553]
[1693926850603,0.21274875,25837.0,25833.0,0.70769353]
[1693926850805,0.36740686,25837.0,25835.0,0.774121]
[1693926851026,0.21274875,25837.0,25835.0,1.548264]
[1693926851257,0.929523,25839.0,25835.0,1.548264]
[1693926851459,0.28412827,25837.0,25836.0,0.002]
[1693926852083,0.1905,25838.0,25835.0,1.074113]
[1693926852328,0.1555,25839.0,25836.0,1.548226]
[1693926852329,0.018,25837.0,25836.0,1.548226]
[1693926852731,0.021,25837.0,25836.0,1.548226]
[1693926852883,0.018,25837.0,25836.0,1.548226]
[1693926853085,0.018,25837.0,25835.0,0.302]
[1693926853312,0.018,25837.0,25835.0,0.003]
[1693926853517,0.018,25837.0,25835.0,1.551273]
[1693926853721,0.012,25838.0,25835.0,2.323416]
[1693926853902,0.012,25838.0,25835.0,2.71006127]
[1693926854119,0.018,25837.0,25836.0,0.002]
[1693926854308,0.018,25837.0,25836.0,1.550196]
[1693926854501,0.012,25838.0,25836.0,1.548196]
[1693926854684,0.40000997,25839.0,25836.0,1.548196]
[1693926854882,0.024,25838.0,25836.0,1.548196]
[1693926855086,0.003,25837.0,25836.0,1.549196]
[1693926855336,0.024,25838.0,25836.0,1.548196]
[1693926855533,0.1555,25839.0,25836.0,1.548196]
[1693926855737,0.036,25838.0,25836.0,1.551196]
[1693926855962,0.024,25838.0,25837.0,0.38664527]
[1693926856147,0.024,25838.0,25837.0,3.02889427]
[1693926856947,0.024,25838.0,25837.0,3.00889427]
[1693926857147,0.25337176,25840.0,25837.0,2.23481127]
[1693926857349,0.25337176,25840.0,25837.0,3.02889427]
[1693926857644,0.024,25839.0,25837.0,3.02889427]
[1693926857973,0.012,25838.0,25837.0,1.074083]
[1693926858173,0.012,25838.0,25837.0,1.848166]
[1693926858376,0.1661,25842.0,25837.0,1.848166]
[1693926858614,1.23820308,25841.0,25837.0,0.11525811]
[1693926858874,0.027,25840.0,25837.0,0.003]
[1693926859083,0.024,25840.0,25837.0,0.002]
[1693926859398,0.797999,25840.0,25837.0,0.002]
[1693926859601,0.001,25838.0,25837.0,0.008]
[1693926859713,1.7590479,25838.0,25837.0,0.002]
[1693926859916,2.00315615,25838.0,25837.0,0.002]
[1693926860154,2.00315615,25838.0,25835.0,0.3]
[1693926860318,1.99961366,25838.0,25835.0,0.3]
[1693926860527,1.99961366,25838.0,25837.0,0.002]
[1693926861171,2.52955841,25838.0,25837.0,0.001]
[1693926861461,2.93420368,25838.0,25837.0,0.001]
[1693926861664,3.16340938,25838.0,25835.0,0.002]
[1693926861867,0.1361,25837.0,25835.0,0.002]
[1693926862072,0.774113,25836.0,25834.0,0.02]
[1693926862291,1.149113,25836.0,25834.0,0.02]
[1693926862496,1.923226,25836.0,25834.0,0.02]
[1693926862648,0.24053925,25835.0,25834.0,0.02]
[1693926862862,0.24053925,25835.0,25830.0,0.794278]
[1693926862863,1.16078827,25835.0,25830.0,0.794278]
[1693926863071,0.1361,25831.0,25830.0,0.02]
[1693926863271,1.83928411,25831.0,25830.0,0.02]
[1693926863501,1.684626,25831.0,25830.0,0.02]
[1693926864044,2.458889,25831.0,25830.0,0.02]
[1693926864459,2.84553427,25831.0,25830.0,0.02]
[1693926864658,3.23317954,25831.0,25830.0,0.028]
[1693926864881,3.23317954,25831.0,25830.0,0.008]
[1693926865246,3.23217954,25831.0,25828.0,0.02]
[1693926865560,2.459069,25829.0,25828.0,0.02]
[1693926865713,2.84571427,25829.0,25828.0,0.02]
[1693926865916,2.99704243,25829.0,25825.0,0.02]
[1693926866183,0.38664527,25828.0,25826.0,0.02]
[1693926866377,1.923766,25827.0,25826.0,0.02]
[1693926867851,2.16771288,25827.0,25826.0,0.022]
[1693926868057,2.083866,25827.0,25826.0,0.022]
[1693926868262,3.43781587,25827.0,25826.0,0.022]
[1693926869369,3.45681587,25827.0,25826.0,0.022]
[1693926870324,3.47681587,25827.0,25826.0,0.002]
[1693926870937,3.68861106,25827.0,25826.0,0.002]
[1693926871102,3.47681587,25827.0,25826.0,0.002]
[1693926872034,3.74101034,25827.0,25826.0,0.002]
[1693926873693,2.761149,25827.0,25826.0,0.002]
[1693926873909,1.192383,25827.0,25826.0,0.002]
[1693926874483,0.418,25827.0,25826.0,0.022]
[1693926874892,0.2335,25827.0,25826.0,1.590826]
[1693926875082,0.043,25827.0,25826.0,2.365239]
[1693926875644,0.024,25827.0,25826.0,2.96714238]
[1693926875845,0.024,25827.0,25826.0,3.24862427]
[1693926875846,0.044,25827.0,25826.0,3.24862427]
[1693926876074,0.044,25827.0,25826.0,3.24724427]
[1693926876279,0.024,25827.0,25826.0,4.15236954]
[1693926876453,0.09265132,25834.0,25833.0,0.02]
[1693926876690,0.09265132,25834.0,25833.0,0.13525811]
[1693926876691,0.37429504,25834.0,25833.0,0.13525811]
[1693926876896,0.37429504,25834.0,25833.0,0.02]
[1693926877100,0.09265132,25834.0,25833.0,0.02]
[1693926877646,0.35223475,25834.0,25833.0,0.02]
[1693926877860,0.11165132,25834.0,25833.0,0.022]
[1693926878272,0.28882019,25835.0,25833.0,0.02]
[1693926878478,0.28882019,25835.0,25834.0,0.02]
[1693926878682,0.185,25836.0,25834.0,0.50190338]
[1693926878889,0.21280251,25838.0,25834.0,2.88261272]
[1693926879067,0.21280251,25838.0,25834.0,2.82442238]
[1693926879572,0.21318427,25837.0,25833.0,1.548381]
[1693926879704,0.011,25835.0,25834.0,0.32]
[1693926879920,0.98727027,25837.0,25834.0,0.32]
[1693926880145,1.2408061,25837.0,25834.0,0.32]
[1693926880390,1.2408061,25837.0,25834.0,0.3]
[1693926880729,2.0518921,25837.0,25833.0,0.776188]
[1693926880905,2.0518921,25837.0,25833.0,0.002]
[1693926880906,0.63576351,25836.0,25833.0,0.002]
[1693926881118,1.13551455,25835.0,25833.0,0.002]
[1693926881247,0.774143,25835.0,25831.0,1.568506]
[1693926881449,0.92880111,25835.0,25834.0,0.002]
[1693926881685,1.548286,25835.0,25834.0,0.002]
[1693926882798,0.001,25835.0,25834.0,3.20904427]
[1693926883371,0.28990381,25839.0,25834.0,3.20404427]
[1693926883593,0.28990381,25839.0,25835.0,0.70664527]
[1693926883822,1.06392781,25839.0,25836.0,0.774109]
[1693926884500,1.06492781,25839.0,25836.0,0.774109]
[1693926884994,0.22691205,25837.0,25834.0,0.019]
[1693926885197,1.00101405,25837.0,25834.0,0.019]
[1693926885364,1.00101405,25837.0,25835.0,0.01]
[1693926885766,0.24408919,25836.0,25834.0,0.019]
[1693926886086,1.27484131,25836.0,25834.0,0.019]
[1693926886302,0.774102,25837.0,25833.0,0.991498]
[1693926886515,1.548209,25837.0,25836.0,0.002]
[1693926886721,0.002,25837.0,25836.0,1.550226]
[1693926886929,1.22442505,25840.0,25836.0,1.7062486]
[1693926887132,1.22442505,25840.0,25836.0,1.81950671]
[1693926887336,1.22442505,25840.0,25836.0,1.66348411]
[1693926887543,0.22643255,25839.0,25836.0,1.548226]
[1693926888220,0.26829769,25838.0,25836.0,0.774113]
[1693926888435,2.518541,25840.0,25836.0,0.774113]
[1693926888652,2.518541,25840.0,25837.0,0.50190338]
[1693926888653,0.1965,25840.0,25837.0,0.50190338]
[1693926888924,0.27631388,25839.0,25837.0,0.79407]
[1693926889118,0.27831388,25839.0,25836.0,0.01]
[1693926889307,1.34837717,25839.0,25836.0,0.784113]
[1693926889503,2.12040117,25839.0,25835.0,1.548257]
[1693926889726,2.27505928,25839.0,25836.0,0.006]
[1693926889877,2.12040117,25839.0,25836.0,0.008]
[1693926890078,2.87442517,25839.0,25836.0,0.002]
[1693926890334,0.04637772,25838.0,25836.0,0.01]
[1693926890577,0.774083,25837.0,25836.0,0.01]
[1693926890951,0.98683913,25837.0,25836.0,0.01]
[1693926891088,1.95142213,25837.0,25836.0,0.01]
[1693926891499,1.94642213,25837.0,25836.0,0.01]
[1693926891748,0.002,25839.0,25836.0,0.774113]
[1693926891956,1.77393361,25840.0,25836.0,1.548226]
[1693926892159,0.003,25838.0,25836.0,1.67348411]
[1693926892355,0.003,25838.0,25836.0,1.558226]
[1693926892558,0.2834195,25838.0,25836.0,0.774113]
[1693926892757,0.42953246,25837.0,25836.0,0.021]
[1693926892958,1.20561546,25837.0,25836.0,0.021]
[1693926893168,1.20361546,25837.0,25836.0,0.011]
[1693926893705,1.20361546,25837.0,25836.0,0.01]
[1693926894000,1.97769846,25837.0,25834.0,0.3]